[Event "Titled Tuesday Blitz April 19 Early 2022"]
[White "Mirzoev, Azer"]
[Black "Omariev, Maksim"]
[WhiteFideId "13400304"]
[BlackFideId "4193423"]
[WhiteElo "2525"]
[BlackElo "2477"]
[Result "0-1"]
[Round "03"]
[TimeControl "180+1"]
[Date "2022.04.19"]
[WhiteClock "0:00:07"]
[BlackClock "0:00:06"]

1. Nf3 {[%clk 0:03:00]}  d5 {[%clk 0:02:59]} 2. c4 {[%clk 0:03:00]}  c6 {[%clk 0:02:57]} 3. e3 {[%clk 0:02:59]}  Nf6 {[%clk 0:02:55]} 4. b3 {[%clk 0:03:00]}  e6 {[%clk 0:02:54]} 5. Bb2 {[%clk 0:03:00]}  Be7 {[%clk 0:02:54]} 6. d4 {[%clk 0:02:59]}  O-O {[%clk 0:02:54]} 7. Nc3 {[%clk 0:03:00]}  b6 {[%clk 0:02:54]} 8. Bd3 {[%clk 0:03:00]}  Bb7 {[%clk 0:02:55]} 9. O-O {[%clk 0:03:01]}  Nbd7 {[%clk 0:02:55]} 10. Qe2 {[%clk 0:02:59]}  c5 {[%clk 0:02:54]} 11. Rad1 {[%clk 0:02:58]}  Rc8 {[%clk 0:02:39]} 12. h3 {[%clk 0:02:57]}  Qc7 {[%clk 0:02:39]} 13. cxd5 {[%clk 0:02:54]}  cxd4 {[%clk 0:01:59]} 14. d6 {[%clk 0:02:45]}  Qxd6 {[%clk 0:01:44]} 15. Nxd4 {[%clk 0:02:31]}  Qb8 {[%clk 0:01:39]} 16. Bb1 {[%clk 0:02:22]}  Rfd8 {[%clk 0:01:37]} 17. Nf3 {[%clk 0:02:05]}  a6 {[%clk 0:01:33]} 18. Ng5 {[%clk 0:02:03]}  b5 {[%clk 0:01:26]} 19. Nce4 {[%clk 0:01:56]}  h6 {[%clk 0:01:15]} 20. Nxf6+ {[%clk 0:01:49]}  Nxf6 {[%clk 0:01:16]} 21. Nf3 {[%clk 0:01:32]}  Qa8 {[%clk 0:01:17]} 22. Rxd8+ {[%clk 0:01:27]}  Rxd8 {[%clk 0:01:18]} 23. Rc1 {[%clk 0:01:27]}  Rc8 {[%clk 0:00:54]} 24. Rd1 {[%clk 0:01:26]}  Rd8 {[%clk 0:00:52]} 25. Bd4 {[%clk 0:01:26]}  Be4 {[%clk 0:00:41]} 26. Bxe4 {[%clk 0:01:22]}  Qxe4 {[%clk 0:00:42]} 27. Rc1 {[%clk 0:01:12]}  Nd5 {[%clk 0:00:39]} 28. Qc2 {[%clk 0:00:56]}  Qxc2 {[%clk 0:00:33]} 29. Rxc2 {[%clk 0:00:57]}  Nb4 {[%clk 0:00:25]} 30. Rc7 {[%clk 0:00:56]}  Bd6 {[%clk 0:00:24]} 31. Ra7 {[%clk 0:00:56]}  Rc8 {[%clk 0:00:20]} 32. g4 {[%clk 0:00:49]}  Rc6 {[%clk 0:00:20]} 33. a4 {[%clk 0:00:43]}  Nc2 {[%clk 0:00:17]} 34. Be5 {[%clk 0:00:40]}  Bc5 {[%clk 0:00:14]} 35. Ra8+ {[%clk 0:00:34]}  Kh7 {[%clk 0:00:14]} 36. axb5 {[%clk 0:00:35]}  axb5 {[%clk 0:00:14]} 37. Rb8 {[%clk 0:00:29]}  f6 {[%clk 0:00:13]} 38. Bb2 {[%clk 0:00:19]}  b4 {[%clk 0:00:12]} 39. Rb7 {[%clk 0:00:12]}  e5 {[%clk 0:00:12]} 40. Nh4 {[%clk 0:00:12]}  Bf8 {[%clk 0:00:04]} 41. Nf5 {[%clk 0:00:11]}  Rc8 {[%clk 0:00:04]} 42. Kg2 {[%clk 0:00:10]}  Ne1+ {[%clk 0:00:03]} 43. Kf1 {[%clk 0:00:10]}  Nd3 {[%clk 0:00:04]} 44. Bd4 {[%clk 0:00:08]}  exd4 {[%clk 0:00:04]} 45. Nxd4 {[%clk 0:00:08]}  Nc1 {[%clk 0:00:03]} 46. h4 {[%clk 0:00:07]}  Nd3 {[%clk 0:00:02]} 47. h5 {[%clk 0:00:07]}  Ne5 {[%clk 0:00:02]} 48. f3 {[%clk 0:00:07]}  Nc6 {[%clk 0:00:02]} 49. Nf5 {[%clk 0:00:06]}  Ne5 {[%clk 0:00:02]} 50. Ke2 {[%clk 0:00:06]}  Rc2+ {[%clk 0:00:02]} 51. Kd1 {[%clk 0:00:06]}  Rc3 {[%clk 0:00:02]} 52. Ke2 {[%clk 0:00:05]}  Rc2+ {[%clk 0:00:02]} 53. Kd1 {[%clk 0:00:05]}  Rc3 {[%clk 0:00:03]} 54. Ke2 {[%clk 0:00:06]}  Rxb3 {[%clk 0:00:04]} 55. Nd4 {[%clk 0:00:06]}  Rb2+ {[%clk 0:00:03]} 56. Kd1 {[%clk 0:00:06]}  Bc5 {[%clk 0:00:03]} 57. Ne6 {[%clk 0:00:06]}  Bxe3 {[%clk 0:00:03]} 58. Rxg7+ {[%clk 0:00:06]}  Kh8 {[%clk 0:00:03]} 59. Rb7 {[%clk 0:00:06]}  Rd2+ {[%clk 0:00:03]} 60. Ke1 {[%clk 0:00:06]}  Nd3+ {[%clk 0:00:03]} 61. Kf1 {[%clk 0:00:07]}  Rf2+ {[%clk 0:00:03]} 62. Kg1 {[%clk 0:00:07]}  Rxf3+ {[%clk 0:00:04]} 63. Kg2 {[%clk 0:00:07]}  Ne1+ {[%clk 0:00:04]} 64. Kh2 {[%clk 0:00:06]}  Rf2+ {[%clk 0:00:04]} 65. Kg3 {[%clk 0:00:06]}  Rg2+ {[%clk 0:00:03]} 66. Kh3 {[%clk 0:00:06]}  Rb2 {[%clk 0:00:04]} 67. Rb8+ {[%clk 0:00:06]}  Kh7 {[%clk 0:00:04]} 68. Rb7+ {[%clk 0:00:07]}  Kg8 {[%clk 0:00:04]} 69. Rg7+ {[%clk 0:00:07]}  Kh8 {[%clk 0:00:05]} 70. Rb7 {[%clk 0:00:07]}  b3 {[%clk 0:00:05]} 71. Rb8+ {[%clk 0:00:07]}  Kh7 {[%clk 0:00:05]} 72. Nf8+ {[%clk 0:00:06]}  Kg7 {[%clk 0:00:05]} 73. Ne6+ {[%clk 0:00:07]}  Kf7 {[%clk 0:00:06]} 74. Nd8+ {[%clk 0:00:07]}  Ke7 {[%clk 0:00:06]} 75. Nc6+ {[%clk 0:00:07]}  Kd6 {[%clk 0:00:06]} 76. Na5 {[%clk 0:00:07]}  Bf4 {[%clk 0:00:06]} 77. Nc4+ {[%clk 0:00:07]}  Kc7 {[%clk 0:00:06]} 0-1


[Site "https://www.chess.com"]

[Event "Titled Tuesday Blitz April 19 Early 2022"]
[White "Mitrabha, Guha"]
[Black "Kobo, Ori"]
[WhiteFideId "5057000"]
[BlackFideId "2812320"]
[WhiteElo "2468"]
[BlackElo "2420"]
[Result "1/2-1/2"]
[Round "03"]
[TimeControl "180+1"]
[Date "2022.04.19"]
[WhiteClock "0:00:05"]
[BlackClock "0:00:02"]

1. d4 {[%clk 0:03:00]}  Nf6 {[%clk 0:02:59]} 2. c4 {[%clk 0:02:54]}  c5 {[%clk 0:02:59]} 3. Nf3 {[%clk 0:02:53]}  cxd4 {[%clk 0:02:59]} 4. Nxd4 {[%clk 0:02:52]}  e5 {[%clk 0:03:00]} 5. Nb5 {[%clk 0:02:52]}  d5 {[%clk 0:03:00]} 6. cxd5 {[%clk 0:02:52]}  Bc5 {[%clk 0:03:01]} 7. N5c3 {[%clk 0:02:51]}  O-O {[%clk 0:03:00]} 8. e3 {[%clk 0:02:51]}  Bf5 {[%clk 0:03:00]} 9. Be2 {[%clk 0:02:50]}  Nbd7 {[%clk 0:02:54]} 10. a3 {[%clk 0:02:50]}  Nb6 {[%clk 0:02:26]} 11. b4 {[%clk 0:02:45]}  Be7 {[%clk 0:02:25]} 12. Bb2 {[%clk 0:02:35]}  Nbxd5 {[%clk 0:01:59]} 13. Nxd5 {[%clk 0:02:27]}  Nxd5 {[%clk 0:01:59]} 14. O-O {[%clk 0:02:19]}  Bf6 {[%clk 0:01:51]} 15. Nd2 {[%clk 0:02:16]}  Qe7 {[%clk 0:01:36]} 16. e4 {[%clk 0:02:14]}  Nf4 {[%clk 0:01:24]} 17. exf5 {[%clk 0:02:11]}  Rad8 {[%clk 0:01:25]} 18. Qe1 {[%clk 0:02:09]}  e4 {[%clk 0:01:09]} 19. Bxf6 {[%clk 0:02:02]}  Qxf6 {[%clk 0:01:10]} 20. Nxe4 {[%clk 0:02:00]}  Qxf5 {[%clk 0:01:10]} 21. Ng3 {[%clk 0:01:54]}  Qc2 {[%clk 0:01:09]} 22. Bf3 {[%clk 0:01:52]}  Rd4 {[%clk 0:00:38]} 23. Ne2 {[%clk 0:01:36]}  Re4 {[%clk 0:00:22]} 24. Bxe4 {[%clk 0:01:08]}  Nxe2+ {[%clk 0:00:22]} 25. Kh1 {[%clk 0:01:09]}  Qxe4 {[%clk 0:00:22]} 26. Ra2 {[%clk 0:01:06]}  Re8 {[%clk 0:00:22]} 27. Qd2 {[%clk 0:00:59]}  Nf4 {[%clk 0:00:18]} 28. f3 {[%clk 0:00:54]}  Qc4 {[%clk 0:00:18]} 29. Rc1 {[%clk 0:00:44]}  Qe6 {[%clk 0:00:13]} 30. Rac2 {[%clk 0:00:38]}  g5 {[%clk 0:00:13]} 31. Rc7 {[%clk 0:00:26]}  h6 {[%clk 0:00:09]} 32. h3 {[%clk 0:00:13]}  Qf5 {[%clk 0:00:04]} 33. Re1 {[%clk 0:00:09]}  Rf8 {[%clk 0:00:03]} 34. Rc5 {[%clk 0:00:07]}  Qf6 {[%clk 0:00:03]} 35. Qc3 {[%clk 0:00:06]}  Qg6 {[%clk 0:00:03]} 36. Rc8 {[%clk 0:00:06]}  Rxc8 {[%clk 0:00:03]} 37. Qxc8+ {[%clk 0:00:07]}  Kg7 {[%clk 0:00:03]} 38. Qc3+ {[%clk 0:00:06]}  Kh7 {[%clk 0:00:03]} 39. Re8 {[%clk 0:00:05]}  Qb1+ {[%clk 0:00:01]} 40. Kh2 {[%clk 0:00:04]}  Ng6 {[%clk 0:00:02]} 41. Re3 {[%clk 0:00:01]}  Qf5 {[%clk 0:00:02]} 42. Qd3 {[%clk 0:00:02]}  Qf4+ {[%clk 0:00:02]} 43. g3 {[%clk 0:00:02]}  Qf6 {[%clk 0:00:03]} 44. Kg2 {[%clk 0:00:03]}  Qb2+ {[%clk 0:00:03]} 45. Re2 {[%clk 0:00:03]}  Qf6 {[%clk 0:00:04]} 46. Qe4 {[%clk 0:00:04]}  Kg7 {[%clk 0:00:04]} 47. h4 {[%clk 0:00:05]}  gxh4 {[%clk 0:00:05]} 48. Qg4 {[%clk 0:00:05]}  hxg3 {[%clk 0:00:05]} 49. Kxg3 {[%clk 0:00:06]}  Qd6+ {[%clk 0:00:05]} 50. f4 {[%clk 0:00:06]}  Qd3+ {[%clk 0:00:05]} 51. Qf3 {[%clk 0:00:07]}  Qf5 {[%clk 0:00:05]} 52. Qg4 {[%clk 0:00:07]}  Qd3+ {[%clk 0:00:05]} 53. Kf2 {[%clk 0:00:08]}  Qd4+ {[%clk 0:00:05]} 54. Kf3 {[%clk 0:00:07]}  Qd3+ {[%clk 0:00:05]} 55. Re3 {[%clk 0:00:08]}  Qd1+ {[%clk 0:00:05]} 56. Kg3 {[%clk 0:00:07]}  Qg1+ {[%clk 0:00:05]} 57. Kf3 {[%clk 0:00:08]}  Qd1+ {[%clk 0:00:05]} 58. Re2 {[%clk 0:00:08]}  Qf1+ {[%clk 0:00:05]} 59. Ke3 {[%clk 0:00:07]}  Qc1+ {[%clk 0:00:06]} 60. Kf2 {[%clk 0:00:08]}  Qc4 {[%clk 0:00:02]} 61. Kg3 {[%clk 0:00:05]}  Qd3+ {[%clk 0:00:02]} 1/2-1/2


[Site "https://www.chess.com"]

[Event "Titled Tuesday Blitz April 19 Early 2022"]
[White "Mortazavi, Ali"]
[Black "Urazayev, Arystanbek"]
[WhiteFideId "401323"]
[BlackFideId "13709810"]
[WhiteElo "2339"]
[BlackElo "2422"]
[Result "0-1"]
[Round "03"]
[TimeControl "180+1"]
[Date "2022.04.19"]
[WhiteClock "0:01:00"]
[BlackClock "0:01:36"]

1. Nf3 {[%clk 0:03:00]}  Nf6 {[%clk 0:02:59]} 2. g3 {[%clk 0:03:00]}  g6 {[%clk 0:03:00]} 3. Bg2 {[%clk 0:03:01]}  Bg7 {[%clk 0:03:01]} 4. O-O {[%clk 0:03:02]}  O-O {[%clk 0:03:02]} 5. d3 {[%clk 0:03:02]}  c5 {[%clk 0:03:02]} 6. e4 {[%clk 0:03:02]}  d6 {[%clk 0:03:01]} 7. e5 {[%clk 0:03:02]}  dxe5 {[%clk 0:03:00]} 8. Nxe5 {[%clk 0:03:03]}  Nfd7 {[%clk 0:03:00]} 9. Nc4 {[%clk 0:03:02]}  Nc6 {[%clk 0:02:59]} 10. Nc3 {[%clk 0:02:59]}  Nb6 {[%clk 0:02:59]} 11. a4 {[%clk 0:02:57]}  Nxc4 {[%clk 0:02:54]} 12. dxc4 {[%clk 0:02:57]}  Bxc3 {[%clk 0:02:55]} 13. bxc3 {[%clk 0:02:56]}  Qxd1 {[%clk 0:02:55]} 14. Rxd1 {[%clk 0:02:56]}  Be6 {[%clk 0:02:56]} 15. Be3 {[%clk 0:02:33]}  Bxc4 {[%clk 0:02:49]} 16. Bxc5 {[%clk 0:02:33]}  Rfc8 {[%clk 0:02:41]} 17. Rd7 {[%clk 0:02:26]}  Ne5 {[%clk 0:02:31]} 18. Rxb7 {[%clk 0:01:44]}  Rxc5 {[%clk 0:02:28]} 19. Rxe7 {[%clk 0:01:43]}  Rd8 {[%clk 0:02:07]} 20. Rxa7 {[%clk 0:01:43]}  Be2 {[%clk 0:02:02]} 21. Re7 {[%clk 0:01:30]}  Kf8 {[%clk 0:01:58]} 22. Rb7 {[%clk 0:01:23]}  Nf3+ {[%clk 0:01:56]} 23. Kh1 {[%clk 0:01:19]}  Rd2 {[%clk 0:01:48]} 24. a5 {[%clk 0:01:06]}  Rxa5 {[%clk 0:01:42]} 25. Rc1 {[%clk 0:01:03]}  Rxc2 {[%clk 0:01:39]} 26. Rcb1 {[%clk 0:01:00]}  Rxc3 {[%clk 0:01:36]} 0-1


[Site "https://www.chess.com"]

[Event "Titled Tuesday Blitz April 19 Early 2022"]
[White "Moskalenko, Alexander"]
[Black "Vlassov, Nikolai"]
[WhiteFideId "4155351"]
[BlackFideId "4103360"]
[WhiteElo "2434"]
[BlackElo "2407"]
[Result "1-0"]
[Round "03"]
[TimeControl "180+1"]
[Date "2022.04.19"]
[WhiteClock "0:00:41"]
[BlackClock "0:00:07"]

1. Nf3 {[%clk 0:03:00]}  g6 {[%clk 0:02:52]} 2. g3 {[%clk 0:03:01]}  Bg7 {[%clk 0:02:52]} 3. d4 {[%clk 0:03:01]}  f5 {[%clk 0:02:51]} 4. Bg2 {[%clk 0:03:02]}  Nf6 {[%clk 0:02:51]} 5. b3 {[%clk 0:03:02]}  O-O {[%clk 0:02:50]} 6. Bb2 {[%clk 0:03:02]}  d6 {[%clk 0:02:51]} 7. O-O {[%clk 0:03:03]}  Ne4 {[%clk 0:02:46]} 8. Nfd2 {[%clk 0:03:02]}  Nxd2 {[%clk 0:02:33]} 9. Qxd2 {[%clk 0:03:03]}  c5 {[%clk 0:02:32]} 10. c4 {[%clk 0:03:02]}  Nc6 {[%clk 0:02:32]} 11. d5 {[%clk 0:03:00]}  Ne5 {[%clk 0:02:23]} 12. Nc3 {[%clk 0:02:57]}  Bd7 {[%clk 0:02:23]} 13. Rae1 {[%clk 0:02:44]}  a6 {[%clk 0:02:22]} 14. a4 {[%clk 0:02:42]}  b5 {[%clk 0:02:19]} 15. f4 {[%clk 0:02:37]}  Ng4 {[%clk 0:02:16]} 16. h3 {[%clk 0:02:37]}  Nf6 {[%clk 0:02:11]} 17. axb5 {[%clk 0:02:36]}  axb5 {[%clk 0:02:12]} 18. e4 {[%clk 0:02:36]}  fxe4 {[%clk 0:02:06]} 19. Nxb5 {[%clk 0:02:27]}  Bxb5 {[%clk 0:02:04]} 20. cxb5 {[%clk 0:02:28]}  Ra2 {[%clk 0:02:03]} 21. Rf2 {[%clk 0:01:45]}  Nh5 {[%clk 0:01:53]} 22. Qc1 {[%clk 0:01:29]}  Rxb2 {[%clk 0:01:48]} 23. Rxb2 {[%clk 0:01:30]}  Bxb2 {[%clk 0:01:48]} 24. Qxb2 {[%clk 0:01:31]}  Nxg3 {[%clk 0:01:49]} 25. Qf2 {[%clk 0:01:32]}  Nh5 {[%clk 0:01:45]} 26. Rxe4 {[%clk 0:01:32]}  g5 {[%clk 0:01:34]} 27. f5 {[%clk 0:01:25]}  Nf4 {[%clk 0:01:25]} 28. Qe3 {[%clk 0:01:18]}  Rf7 {[%clk 0:01:23]} 29. h4 {[%clk 0:01:14]}  h6 {[%clk 0:01:23]} 30. hxg5 {[%clk 0:01:13]}  hxg5 {[%clk 0:01:23]} 31. f6 {[%clk 0:01:14]}  Rxf6 {[%clk 0:01:11]} 32. Rxe7 {[%clk 0:01:14]}  Qa5 {[%clk 0:00:58]} 33. Re8+ {[%clk 0:01:10]}  Rf8 {[%clk 0:00:52]} 34. b6 {[%clk 0:01:00]}  Qxb6 {[%clk 0:00:47]} 35. Qe7 {[%clk 0:01:00]}  Rxe8 {[%clk 0:00:45]} 36. Qxe8+ {[%clk 0:00:59]}  Kg7 {[%clk 0:00:45]} 37. Qe7+ {[%clk 0:00:59]}  Kh6 {[%clk 0:00:38]} 38. Qf6+ {[%clk 0:00:57]}  Kh5 {[%clk 0:00:32]} 39. Bf3+ {[%clk 0:00:43]}  Kh4 {[%clk 0:00:32]} 40. Qf5 {[%clk 0:00:43]}  Nh3+ {[%clk 0:00:08]} 41. Kh2 {[%clk 0:00:40]}  Nf2 {[%clk 0:00:07]} 42. Qh7# {[%clk 0:00:41]} 1-0


[Site "https://www.chess.com"]

[Event "Titled Tuesday Blitz April 19 Early 2022"]
[White "Moskvin, Anatoly"]
[Black "Dang, Hoang Son"]
[WhiteFideId "24199990"]
[BlackFideId "12402435"]
[WhiteElo "2079"]
[BlackElo "2252"]
[Result "1-0"]
[Round "03"]
[TimeControl "180+1"]
[Date "2022.04.19"]
[WhiteClock "0:00:12"]
[BlackClock "0:00:01"]

1. e4 {[%clk 0:03:00]}  e5 {[%clk 0:02:59]} 2. Nf3 {[%clk 0:03:00]}  Nc6 {[%clk 0:02:59]} 3. Bc4 {[%clk 0:03:01]}  Nf6 {[%clk 0:02:57]} 4. d3 {[%clk 0:03:01]}  Bc5 {[%clk 0:02:57]} 5. c3 {[%clk 0:03:02]}  d6 {[%clk 0:02:57]} 6. Nbd2 {[%clk 0:03:03]}  O-O {[%clk 0:02:58]} 7. Bb3 {[%clk 0:03:03]}  a5 {[%clk 0:02:55]} 8. a4 {[%clk 0:03:03]}  h6 {[%clk 0:02:53]} 9. h3 {[%clk 0:03:01]}  Bb6 {[%clk 0:02:54]} 10. Nf1 {[%clk 0:03:01]}  Ne7 {[%clk 0:02:54]} 11. Ng3 {[%clk 0:03:01]}  Ng6 {[%clk 0:02:54]} 12. Nh2 {[%clk 0:03:02]}  Be6 {[%clk 0:02:43]} 13. Bc2 {[%clk 0:03:01]}  d5 {[%clk 0:02:43]} 14. Qe2 {[%clk 0:03:01]}  Nf4 {[%clk 0:02:38]} 15. Qf3 {[%clk 0:02:58]}  dxe4 {[%clk 0:02:12]} 16. dxe4 {[%clk 0:02:59]}  g5 {[%clk 0:02:04]} 17. Ng4 {[%clk 0:02:54]}  Nxg4 {[%clk 0:01:32]} 18. hxg4 {[%clk 0:02:55]}  Kg7 {[%clk 0:01:30]} 19. Nf5+ {[%clk 0:02:50]}  Bxf5 {[%clk 0:01:30]} 20. gxf5 {[%clk 0:02:49]}  h5 {[%clk 0:01:13]} 21. Bxf4 {[%clk 0:02:46]}  exf4 {[%clk 0:01:13]} 22. Rd1 {[%clk 0:02:38]}  Qf6 {[%clk 0:01:13]} 23. Rxh5 {[%clk 0:02:36]}  Rh8 {[%clk 0:01:12]} 24. Rxh8 {[%clk 0:02:19]}  Rxh8 {[%clk 0:01:13]} 25. Rd7 {[%clk 0:02:03]}  Rh1+ {[%clk 0:00:50]} 26. Ke2 {[%clk 0:02:00]}  Qc6 {[%clk 0:00:50]} 27. Qd3 {[%clk 0:01:45]}  f3+ {[%clk 0:00:29]} 28. Kxf3 {[%clk 0:01:33]}  Rh4 {[%clk 0:00:23]} 29. g3 {[%clk 0:00:45]}  Rh2 {[%clk 0:00:19]} 30. Bb3 {[%clk 0:00:42]}  Rxf2+ {[%clk 0:00:09]} 31. Kg4 {[%clk 0:00:43]}  Kh6 {[%clk 0:00:05]} 32. Rxf7 {[%clk 0:00:30]}  Rd2 {[%clk 0:00:04]} 33. Qb1 {[%clk 0:00:15]}  Rh2 {[%clk 0:00:01]} 34. e5 {[%clk 0:00:12]} 1-0


[Site "https://www.chess.com"]

[Event "Titled Tuesday Blitz April 19 Early 2022"]
[White "Ning, Kaiyu"]
[Black "Babazada, Khazar"]
[WhiteFideId "8614750"]
[BlackFideId "13413554"]
[WhiteElo "2013"]
[BlackElo "2406"]
[Result "0-1"]
[Round "03"]
[TimeControl "180+1"]
[Date "2022.04.19"]
[WhiteClock "0:00:13"]
[BlackClock "0:01:04"]

1. d4 {[%clk 0:03:00]}  c6 {[%clk 0:03:00]} 2. c4 {[%clk 0:03:00]}  d5 {[%clk 0:03:00]} 3. e3 {[%clk 0:02:59]}  Nf6 {[%clk 0:03:00]} 4. Nc3 {[%clk 0:02:59]}  e6 {[%clk 0:02:58]} 5. Nf3 {[%clk 0:03:00]}  Be7 {[%clk 0:02:57]} 6. Qc2 {[%clk 0:02:57]}  Nbd7 {[%clk 0:02:57]} 7. Be2 {[%clk 0:02:57]}  O-O {[%clk 0:02:54]} 8. O-O {[%clk 0:02:57]}  b6 {[%clk 0:02:54]} 9. e4 {[%clk 0:02:45]}  dxe4 {[%clk 0:02:54]} 10. Nxe4 {[%clk 0:02:46]}  Bb7 {[%clk 0:02:54]} 11. Rd1 {[%clk 0:02:43]}  Qc7 {[%clk 0:02:49]} 12. Nxf6+ {[%clk 0:02:39]}  Nxf6 {[%clk 0:02:50]} 13. c5 {[%clk 0:02:39]}  Rad8 {[%clk 0:02:36]} 14. Bg5 {[%clk 0:02:33]}  h6 {[%clk 0:02:34]} 15. Bh4 {[%clk 0:02:33]}  bxc5 {[%clk 0:02:32]} 16. dxc5 {[%clk 0:02:32]}  Qa5 {[%clk 0:02:31]} 17. b4 {[%clk 0:02:23]}  Qa3 {[%clk 0:02:22]} 18. Rab1 {[%clk 0:01:48]}  Ba6 {[%clk 0:02:13]} 19. Ne5 {[%clk 0:01:29]}  Bxe2 {[%clk 0:02:04]} 20. Qxe2 {[%clk 0:01:30]}  Qa4 {[%clk 0:02:05]} 21. Bxf6 {[%clk 0:01:16]}  Bxf6 {[%clk 0:02:00]} 22. Nd7 {[%clk 0:01:16]}  Rfe8 {[%clk 0:02:01]} 23. Rd3 {[%clk 0:01:13]}  Bg5 {[%clk 0:01:51]} 24. Qe4 {[%clk 0:01:03]}  Qc2 {[%clk 0:01:38]} 25. Rbd1 {[%clk 0:01:03]}  Rxd7 {[%clk 0:01:36]} 26. h4 {[%clk 0:00:52]}  Rxd3 {[%clk 0:01:33]} 27. Rxd3 {[%clk 0:00:49]}  Qc1+ {[%clk 0:01:34]} 28. Kh2 {[%clk 0:00:47]}  Qf4+ {[%clk 0:01:34]} 29. Qxf4 {[%clk 0:00:46]}  Bxf4+ {[%clk 0:01:35]} 30. g3 {[%clk 0:00:47]}  Bc7 {[%clk 0:01:35]} 31. Rd7 {[%clk 0:00:47]}  Rc8 {[%clk 0:01:36]} 32. a4 {[%clk 0:00:42]}  a6 {[%clk 0:01:36]} 33. Kg2 {[%clk 0:00:38]}  Kf8 {[%clk 0:01:36]} 34. Kf3 {[%clk 0:00:30]}  Ke8 {[%clk 0:01:35]} 35. Rd3 {[%clk 0:00:27]}  Rb8 {[%clk 0:01:34]} 36. Rd4 {[%clk 0:00:26]}  Ke7 {[%clk 0:01:31]} 37. Ke4 {[%clk 0:00:26]}  a5 {[%clk 0:01:30]} 38. bxa5 {[%clk 0:00:25]}  Bxa5 {[%clk 0:01:31]} 39. Rd6 {[%clk 0:00:26]}  Rc8 {[%clk 0:01:11]} 40. Rd4 {[%clk 0:00:17]}  Rd8 {[%clk 0:01:08]} 41. Rc4 {[%clk 0:00:17]}  Rd5 {[%clk 0:01:09]} 42. f4 {[%clk 0:00:17]}  Kd7 {[%clk 0:01:09]} 43. g4 {[%clk 0:00:17]}  h5 {[%clk 0:01:10]} 44. g5 {[%clk 0:00:17]}  g6 {[%clk 0:01:09]} 45. Rc1 {[%clk 0:00:17]}  Kc7 {[%clk 0:01:08]} 46. Rc2 {[%clk 0:00:16]}  Kb7 {[%clk 0:01:04]} 47. Rb2+ {[%clk 0:00:16]}  Ka7 {[%clk 0:01:05]} 48. Rc2 {[%clk 0:00:14]}  Bd8 {[%clk 0:01:05]} 49. Rb2 {[%clk 0:00:13]}  Be7 {[%clk 0:01:04]} 0-1


[Site "https://www.chess.com"]

[Event "Titled Tuesday Blitz April 19 Early 2022"]
[White "Nogerbek, Kazybek"]
[Black "Papp, Levente"]
[WhiteFideId "13710427"]
[BlackFideId "751243"]
[WhiteElo "2466"]
[BlackElo "2308"]
[Result "1-0"]
[Round "03"]
[TimeControl "180+1"]
[Date "2022.04.19"]
[WhiteClock "0:00:20"]
[BlackClock "0:00:05"]

1. e4 {[%clk 0:03:00]}  e6 {[%clk 0:03:00]} 2. Nf3 {[%clk 0:02:59]}  d5 {[%clk 0:03:00]} 3. Nc3 {[%clk 0:03:00]}  d4 {[%clk 0:02:57]} 4. Ne2 {[%clk 0:03:00]}  c5 {[%clk 0:02:58]} 5. Ng3 {[%clk 0:03:00]}  Nc6 {[%clk 0:02:54]} 6. Bc4 {[%clk 0:03:01]}  h5 {[%clk 0:02:49]} 7. h4 {[%clk 0:03:01]}  Bd6 {[%clk 0:02:48]} 8. d3 {[%clk 0:02:59]}  Qc7 {[%clk 0:02:43]} 9. Ne2 {[%clk 0:02:16]}  Nge7 {[%clk 0:02:28]} 10. a4 {[%clk 0:02:10]}  Ng6 {[%clk 0:02:25]} 11. Ng5 {[%clk 0:01:50]}  Nce5 {[%clk 0:01:48]} 12. Ba2 {[%clk 0:01:44]}  Ng4 {[%clk 0:01:36]} 13. Bd2 {[%clk 0:01:38]}  Bd7 {[%clk 0:01:22]} 14. a5 {[%clk 0:01:38]}  b6 {[%clk 0:00:46]} 15. axb6 {[%clk 0:01:33]}  Qxb6 {[%clk 0:00:45]} 16. Bb3 {[%clk 0:01:26]}  Qc7 {[%clk 0:00:36]} 17. Rh3 {[%clk 0:01:16]}  Ke7 {[%clk 0:00:31]} 18. Ng3 {[%clk 0:01:05]}  Nf4 {[%clk 0:00:26]} 19. Bxf4 {[%clk 0:00:55]}  Bxf4 {[%clk 0:00:27]} 20. Nxh5 {[%clk 0:00:50]}  Nxf2 {[%clk 0:00:21]} 21. Kxf2 {[%clk 0:00:48]}  Be3+ {[%clk 0:00:17]} 22. Rxe3 {[%clk 0:00:40]}  dxe3+ {[%clk 0:00:17]} 23. Kxe3 {[%clk 0:00:41]}  Qh2 {[%clk 0:00:16]} 24. Qf3 {[%clk 0:00:39]}  f6 {[%clk 0:00:13]} 25. Nh3 {[%clk 0:00:38]}  Qe5 {[%clk 0:00:07]} 26. N5f4 {[%clk 0:00:36]}  Qxb2 {[%clk 0:00:07]} 27. Re1 {[%clk 0:00:31]}  Qd4+ {[%clk 0:00:07]} 28. Ke2 {[%clk 0:00:30]}  Kd6 {[%clk 0:00:06]} 29. h5 {[%clk 0:00:25]}  e5 {[%clk 0:00:07]} 30. Nd5 {[%clk 0:00:23]}  a5 {[%clk 0:00:06]} 31. c3 {[%clk 0:00:20]}  a4 {[%clk 0:00:04]} 32. cxd4 {[%clk 0:00:20]}  axb3 {[%clk 0:00:05]} 33. dxc5+ {[%clk 0:00:20]}  Kxc5 {[%clk 0:00:05]} 34. Qe3+ {[%clk 0:00:20]} 1-0


[Site "https://www.chess.com"]

[Event "Titled Tuesday Blitz April 19 Early 2022"]
[White "Nugumanov, Bakhtiyar"]
[Black "Avazkhonov, Alikhon"]
[WhiteFideId "13701797"]
[BlackFideId "14208504"]
[WhiteElo "2262"]
[BlackElo "1739"]
[Result "0-1"]
[Round "03"]
[TimeControl "180+1"]
[Date "2022.04.19"]
[WhiteClock "0:00:20"]
[BlackClock "0:01:12"]

1. Nf3 {[%clk 0:03:00]}  d5 {[%clk 0:02:56]} 2. g3 {[%clk 0:02:51]}  c6 {[%clk 0:02:50]} 3. Bg2 {[%clk 0:02:28]}  Bg4 {[%clk 0:02:46]} 4. c4 {[%clk 0:02:28]}  Bxf3 {[%clk 0:02:39]} 5. Bxf3 {[%clk 0:02:27]}  dxc4 {[%clk 0:02:40]} 6. O-O {[%clk 0:02:23]}  Nf6 {[%clk 0:02:39]} 7. Qc2 {[%clk 0:02:01]}  Nbd7 {[%clk 0:02:35]} 8. Na3 {[%clk 0:01:55]}  Ne5 {[%clk 0:02:22]} 9. Bg2 {[%clk 0:01:53]}  b5 {[%clk 0:02:15]} 10. f4 {[%clk 0:01:49]}  Qb6+ {[%clk 0:02:12]} 11. e3 {[%clk 0:01:47]}  Nd3 {[%clk 0:02:08]} 12. b3 {[%clk 0:01:04]}  Nb4 {[%clk 0:01:26]} 13. Qd1 {[%clk 0:00:52]}  cxb3 {[%clk 0:01:25]} 14. Qxb3 {[%clk 0:00:40]}  e6 {[%clk 0:01:24]} 15. Bb2 {[%clk 0:00:37]}  Be7 {[%clk 0:01:13]} 16. Rac1 {[%clk 0:00:20]}  O-O {[%clk 0:01:12]} 0-1


[Site "https://www.chess.com"]